[Event "Titled Tuesday Blitz March 22 Late 2022"]
[White "Pinheiro, Iung Alicio de O."]
[Black "Prohorov, Olexandr"]
[WhiteFideId "2104350"]
[BlackFideId "14105578"]
[WhiteElo "2542"]
[BlackElo "1993"]
[Result "0-1"]
[Round "09"]
[TimeControl "180+1"]
[Date "2022.03.22"]
[WhiteClock "0:00:02"]
[BlackClock "0:00:14"]

1. c4 {[%clk 0:02:59]}  g6 {[%clk 0:02:59]} 2. g3 {[%clk 0:02:59]}  Bg7 {[%clk 0:02:59]} 3. Bg2 {[%clk 0:02:59]}  f5 {[%clk 0:02:59]} 4. Nc3 {[%clk 0:02:57]}  Nf6 {[%clk 0:03:00]} 5. d3 {[%clk 0:02:58]}  O-O {[%clk 0:03:00]} 6. e4 {[%clk 0:02:54]}  d6 {[%clk 0:02:59]} 7. Nge2 {[%clk 0:02:54]}  Nc6 {[%clk 0:02:55]} 8. O-O {[%clk 0:02:53]}  e5 {[%clk 0:02:35]} 9. Nd5 {[%clk 0:02:52]}  Nxd5 {[%clk 0:02:28]} 10. cxd5 {[%clk 0:02:50]}  Ne7 {[%clk 0:02:29]} 11. d4 {[%clk 0:02:22]}  fxe4 {[%clk 0:02:26]} 12. dxe5 {[%clk 0:02:16]}  Bg4 {[%clk 0:02:26]} 13. e6 {[%clk 0:01:57]}  c6 {[%clk 0:02:14]} 14. Bxe4 {[%clk 0:01:43]}  Qb6 {[%clk 0:02:03]} 15. Qd3 {[%clk 0:01:06]}  cxd5 {[%clk 0:01:54]} 16. Bg2 {[%clk 0:01:03]}  Bf5 {[%clk 0:01:44]} 17. Qd1 {[%clk 0:01:01]}  Bxb2 {[%clk 0:01:35]} 18. Bxb2 {[%clk 0:00:58]}  Qxb2 {[%clk 0:01:36]} 19. Nd4 {[%clk 0:00:53]}  Be4 {[%clk 0:01:36]} 20. Bxe4 {[%clk 0:00:48]}  dxe4 {[%clk 0:01:35]} 21. Rb1 {[%clk 0:00:48]}  Qxa2 {[%clk 0:01:29]} 22. Rxb7 {[%clk 0:00:49]}  Rae8 {[%clk 0:01:24]} 23. Nb5 {[%clk 0:00:45]}  e3 {[%clk 0:01:05]} 24. fxe3 {[%clk 0:00:36]}  Rxf1+ {[%clk 0:01:06]} 25. Qxf1 {[%clk 0:00:36]}  Qxe6 {[%clk 0:00:56]} 26. Qd3 {[%clk 0:00:17]}  Nc6 {[%clk 0:00:53]} 27. Nxd6 {[%clk 0:00:13]}  Ne5 {[%clk 0:00:50]} 28. Qb3 {[%clk 0:00:08]}  Qxb3 {[%clk 0:00:49]} 29. Rxb3 {[%clk 0:00:09]}  Re7 {[%clk 0:00:41]} 30. Kg2 {[%clk 0:00:08]}  Rd7 {[%clk 0:00:35]} 31. Ne4 {[%clk 0:00:08]}  Kg7 {[%clk 0:00:35]} 32. Rb2 {[%clk 0:00:05]}  Nc4 {[%clk 0:00:27]} 33. Re2 {[%clk 0:00:04]}  Re7 {[%clk 0:00:27]} 34. Kf3 {[%clk 0:00:01]}  Ne5+ {[%clk 0:00:26]} 35. Kg2 {[%clk 0:00:01]}  Nc4 {[%clk 0:00:26]} 36. Kf3 {[%clk 0:00:01]}  a5 {[%clk 0:00:26]} 37. Nf2 {[%clk 0:00:01]}  Rf7+ {[%clk 0:00:26]} 38. Kg2 {[%clk 0:00:01]}  a4 {[%clk 0:00:26]} 39. e4 {[%clk 0:00:02]}  Ra7 {[%clk 0:00:26]} 40. e5 {[%clk 0:00:03]}  Kf7 {[%clk 0:00:26]} 41. e6+ {[%clk 0:00:03]}  Ke7 {[%clk 0:00:26]} 42. Nd3 {[%clk 0:00:03]}  a3 {[%clk 0:00:26]} 43. Ra2 {[%clk 0:00:04]}  Kxe6 {[%clk 0:00:25]} 44. Nb4 {[%clk 0:00:02]}  Kd6 {[%clk 0:00:23]} 45. Rc2 {[%clk 0:00:02]}  Kc5 {[%clk 0:00:21]} 46. Na2 {[%clk 0:00:02]}  Kd4 {[%clk 0:00:20]} 47. Rf2 {[%clk 0:00:02]}  Rb7 {[%clk 0:00:18]} 48. Nc1 {[%clk 0:00:02]}  Rb2 {[%clk 0:00:17]} 49. Kf3 {[%clk 0:00:02]}  Rb1 {[%clk 0:00:14]} 0-1


[Site "https://www.chess.com"]

[Event "Titled Tuesday Blitz March 22 Late 2022"]
[White "Rolfe, Warrick"]
[Black "Boyer, Mahel"]
[WhiteFideId "2603802"]
[BlackFideId "45102422"]
[WhiteElo "2573"]
[BlackElo "2328"]
[Result "0-1"]
[Round "09"]
[TimeControl "180+1"]
[Date "2022.03.22"]
[WhiteClock "0:00:18"]
[BlackClock "0:00:11"]

1. e4 {[%clk 0:03:00]}  Nc6 {[%clk 0:02:59]} 2. Nc3 {[%clk 0:03:00]}  d5 {[%clk 0:03:00]} 3. Nxd5 {[%clk 0:02:59]}  f5 {[%clk 0:03:00]} 4. Nc3 {[%clk 0:02:57]}  Nf6 {[%clk 0:02:59]} 5. d3 {[%clk 0:02:51]}  e5 {[%clk 0:02:59]} 6. Bg5 {[%clk 0:02:42]}  Bb4 {[%clk 0:02:35]} 7. Bxf6 {[%clk 0:02:41]}  Qxf6 {[%clk 0:02:23]} 8. a3 {[%clk 0:02:36]}  Bc5 {[%clk 0:01:51]} 9. Nd5 {[%clk 0:02:29]}  Qf7 {[%clk 0:01:50]} 10. Nf3 {[%clk 0:02:20]}  O-O {[%clk 0:01:20]} 11. Be2 {[%clk 0:02:13]}  h6 {[%clk 0:01:14]} 12. b4 {[%clk 0:02:06]}  Bd6 {[%clk 0:01:13]} 13. c4 {[%clk 0:02:00]}  fxe4 {[%clk 0:01:05]} 14. dxe4 {[%clk 0:01:59]}  a5 {[%clk 0:01:05]} 15. b5 {[%clk 0:01:54]}  Nd4 {[%clk 0:01:03]} 16. h3 {[%clk 0:01:38]}  Qg6 {[%clk 0:00:59]} 17. Nxd4 {[%clk 0:01:29]}  exd4 {[%clk 0:00:47]} 18. Bf3 {[%clk 0:01:29]}  c6 {[%clk 0:00:44]} 19. Nb6 {[%clk 0:01:21]}  Rb8 {[%clk 0:00:42]} 20. Nxc8 {[%clk 0:01:21]}  Rbxc8 {[%clk 0:00:43]} 21. O-O {[%clk 0:01:21]}  cxb5 {[%clk 0:00:36]} 22. cxb5 {[%clk 0:01:22]}  Rc3 {[%clk 0:00:36]} 23. Bg4 {[%clk 0:01:05]}  Qxe4 {[%clk 0:00:27]} 24. Qe1 {[%clk 0:00:45]}  Qxe1 {[%clk 0:00:14]} 25. Rfxe1 {[%clk 0:00:44]}  Bxa3 {[%clk 0:00:15]} 26. Re5 {[%clk 0:00:34]}  b6 {[%clk 0:00:14]} 27. Bf3 {[%clk 0:00:24]}  d3 {[%clk 0:00:14]} 28. Rd1 {[%clk 0:00:23]}  Bc5 {[%clk 0:00:12]} 29. Rd5 {[%clk 0:00:20]}  Rc2 {[%clk 0:00:12]} 30. Rxc5 {[%clk 0:00:20]}  Rxc5 {[%clk 0:00:12]} 31. Bc6 {[%clk 0:00:18]}  Rd8 {[%clk 0:00:11]} 32. Kf1 {[%clk 0:00:18]}  d2 {[%clk 0:00:11]} 33. Ke2 {[%clk 0:00:18]}  Re5+ {[%clk 0:00:11]} 34. Kf3 {[%clk 0:00:18]}  Re1 {[%clk 0:00:11]} 0-1


[Site "https://www.chess.com"]

[Event "Titled Tuesday Blitz March 22 Late 2022"]
[White "Rostovtsev, Dmitry"]
[Black "Chigaev, Maksim"]
[WhiteFideId "34278320"]
[BlackFideId "4108116"]
[WhiteElo "2359"]
[BlackElo "2502"]
[Result "1-0"]
[Round "09"]
[TimeControl "180+1"]
[Date "2022.03.22"]
[WhiteClock "0:00:38"]
[BlackClock "0:00:03"]

1. e4 {[%clk 0:03:00]}  c6 {[%clk 0:02:57]} 2. d4 {[%clk 0:02:59]}  d5 {[%clk 0:02:57]} 3. Nc3 {[%clk 0:02:59]}  dxe4 {[%clk 0:02:56]} 4. Nxe4 {[%clk 0:03:00]}  Nf6 {[%clk 0:02:57]} 5. Nxf6+ {[%clk 0:03:00]}  exf6 {[%clk 0:02:58]} 6. c3 {[%clk 0:03:00]}  Bd6 {[%clk 0:02:58]} 7. Bd3 {[%clk 0:03:01]}  O-O {[%clk 0:02:58]} 8. Qc2 {[%clk 0:03:01]}  Re8+ {[%clk 0:02:57]} 9. Ne2 {[%clk 0:03:02]}  h5 {[%clk 0:02:58]} 10. O-O {[%clk 0:03:03]}  Nd7 {[%clk 0:02:58]} 11. Bf4 {[%clk 0:03:02]}  Nf8 {[%clk 0:02:58]} 12. Bxd6 {[%clk 0:03:02]}  Qxd6 {[%clk 0:02:59]} 13. Ng3 {[%clk 0:03:01]}  h4 {[%clk 0:02:54]} 14. Ne4 {[%clk 0:03:01]}  Qc7 {[%clk 0:02:55]} 15. h3 {[%clk 0:03:01]}  Ne6 {[%clk 0:02:45]} 16. Rfe1 {[%clk 0:03:01]}  Bd7 {[%clk 0:02:44]} 17. Bc4 {[%clk 0:02:51]}  b6 {[%clk 0:02:39]} 18. Qd2 {[%clk 0:02:50]}  Rad8 {[%clk 0:02:35]} 19. Rad1 {[%clk 0:02:47]}  Nf4 {[%clk 0:02:18]} 20. Re3 {[%clk 0:02:41]}  Bf5 {[%clk 0:02:10]} 21. Rde1 {[%clk 0:02:39]}  Bxe4 {[%clk 0:01:53]} 22. Rxe4 {[%clk 0:02:40]}  Rxe4 {[%clk 0:01:53]} 23. Rxe4 {[%clk 0:02:41]}  g5 {[%clk 0:01:53]} 24. Qe3 {[%clk 0:02:40]}  Ng6 {[%clk 0:01:42]} 25. Bb3 {[%clk 0:02:35]}  Kg7 {[%clk 0:01:42]} 26. Re8 {[%clk 0:02:12]}  Rxe8 {[%clk 0:01:14]} 27. Qxe8 {[%clk 0:02:13]}  Nf4 {[%clk 0:01:13]} 28. Kf1 {[%clk 0:01:57]}  c5 {[%clk 0:01:03]} 29. dxc5 {[%clk 0:01:56]}  bxc5 {[%clk 0:01:02]} 30. Bc4 {[%clk 0:01:57]}  Ng6 {[%clk 0:01:01]} 31. Qe4 {[%clk 0:01:44]}  Ne5 {[%clk 0:00:56]} 32. Bd5 {[%clk 0:01:43]}  Ng6 {[%clk 0:00:37]} 33. Bc4 {[%clk 0:01:39]}  Qh2 {[%clk 0:00:34]} 34. Ke1 {[%clk 0:01:22]}  a5 {[%clk 0:00:25]} 35. a4 {[%clk 0:01:12]}  Qb8 {[%clk 0:00:21]} 36. b3 {[%clk 0:01:08]}  Qc7 {[%clk 0:00:17]} 37. Bd3 {[%clk 0:01:02]}  Ne5 {[%clk 0:00:07]} 38. Bb5 {[%clk 0:01:00]}  Qd6 {[%clk 0:00:06]} 39. Ke2 {[%clk 0:00:59]}  Ng6 {[%clk 0:00:06]} 40. Ke1 {[%clk 0:00:52]}  Nf4 {[%clk 0:00:07]} 41. Bc4 {[%clk 0:00:50]}  Qd7 {[%clk 0:00:03]} 42. Bb5 {[%clk 0:00:47]}  f5 {[%clk 0:00:03]} 43. Qxf4 {[%clk 0:00:38]}  Qe6+ {[%clk 0:00:03]} 44. Qe3 {[%clk 0:00:37]}  Qxb3 {[%clk 0:00:03]} 45. Qxg5+ {[%clk 0:00:38]} 1-0


[Site "https://www.chess.com"]

[Event "Titled Tuesday Blitz March 22 Late 2022"]
[White "Sanchez Alvares, Kelvin Antonio"]
[Black "Kujawski, Adam"]
[WhiteFideId "3906680"]
[BlackFideId "1100920"]
[WhiteElo "2193"]
[BlackElo "2053"]
[Result "1-0"]
[Round "09"]
[TimeControl "180+1"]
[Date "2022.03.22"]
[WhiteClock "0:01:05"]
[BlackClock "0:00:09"]

1. e4 {[%clk 0:03:00]}  e5 {[%clk 0:02:59]} 2. Nf3 {[%clk 0:03:00]}  Nc6 {[%clk 0:02:59]} 3. Bb5 {[%clk 0:03:00]}  a6 {[%clk 0:03:00]} 4. Ba4 {[%clk 0:03:00]}  Nf6 {[%clk 0:03:00]} 5. O-O {[%clk 0:02:59]}  Be7 {[%clk 0:03:00]} 6. Re1 {[%clk 0:02:55]}  b5 {[%clk 0:03:00]} 7. Bb3 {[%clk 0:02:55]}  d6 {[%clk 0:03:00]} 8. a4 {[%clk 0:02:53]}  Rb8 {[%clk 0:02:59]} 9. Nc3 {[%clk 0:02:53]}  O-O {[%clk 0:02:58]} 10. Nd5 {[%clk 0:02:43]}  h6 {[%clk 0:02:51]} 11. axb5 {[%clk 0:02:31]}  axb5 {[%clk 0:02:50]} 12. Nxf6+ {[%clk 0:02:30]}  Bxf6 {[%clk 0:02:49]} 13. d3 {[%clk 0:02:31]}  Bg4 {[%clk 0:02:44]} 14. Be3 {[%clk 0:02:30]}  Nd4 {[%clk 0:02:23]} 15. Bxd4 {[%clk 0:02:29]}  exd4 {[%clk 0:02:24]} 16. h3 {[%clk 0:02:27]}  Be6 {[%clk 0:02:22]} 17. Bd5 {[%clk 0:02:15]}  Qe8 {[%clk 0:02:03]} 18. Ra6 {[%clk 0:02:05]}  c5 {[%clk 0:01:38]} 19. Rxd6 {[%clk 0:01:58]}  Qe7 {[%clk 0:01:15]} 20. e5 {[%clk 0:01:43]}  Bxe5 {[%clk 0:01:11]} 21. Rxe6 {[%clk 0:01:36]}  fxe6 {[%clk 0:01:09]} 22. Rxe5 {[%clk 0:01:35]}  Rf6 {[%clk 0:01:00]} 23. Qe2 {[%clk 0:01:33]}  Re8 {[%clk 0:00:54]} 24. Bc6 {[%clk 0:01:29]}  Ref8 {[%clk 0:00:49]} 25. Bxb5 {[%clk 0:01:27]}  Rxf3 {[%clk 0:00:48]} 26. gxf3 {[%clk 0:01:22]}  Rf6 {[%clk 0:00:45]} 27. Bc4 {[%clk 0:01:16]}  Rg6+ {[%clk 0:00:43]} 28. Kh2 {[%clk 0:01:14]}  Kh7 {[%clk 0:00:09]} 29. Bxe6 {[%clk 0:01:05]} 1-0


[Site "https://www.chess.com"]

[Event "Titled Tuesday Blitz March 22 Late 2022"]
[White "Sapunov, Evgeny"]
[Black "Buchenau, Frank"]
[WhiteFideId "4126661"]
[BlackFideId "4604350"]
[WhiteElo "2470"]
[BlackElo "2193"]
[Result "0-1"]
[Round "09"]
[TimeControl "180+1"]
[Date "2022.03.22"]
[WhiteClock "0:01:13"]
[BlackClock "0:01:24"]

1. c4 {[%clk 0:02:55]}  e5 {[%clk 0:02:59]} 2. Nf3 {[%clk 0:02:55]}  Nc6 {[%clk 0:02:58]} 3. Nc3 {[%clk 0:02:56]}  Nf6 {[%clk 0:02:58]} 4. e3 {[%clk 0:02:56]}  Bb4 {[%clk 0:02:57]} 5. Qc2 {[%clk 0:02:56]}  d6 {[%clk 0:02:56]} 6. Nd5 {[%clk 0:02:55]}  Bc5 {[%clk 0:02:53]} 7. a3 {[%clk 0:02:55]}  Bb6 {[%clk 0:02:52]} 8. b4 {[%clk 0:02:55]}  Nxd5 {[%clk 0:02:51]} 9. cxd5 {[%clk 0:02:55]}  Ne7 {[%clk 0:02:52]} 10. Bc4 {[%clk 0:02:55]}  O-O {[%clk 0:02:50]} 11. Bb2 {[%clk 0:02:56]}  Bg4 {[%clk 0:02:44]} 12. h3 {[%clk 0:02:54]}  Bh5 {[%clk 0:02:39]} 13. d3 {[%clk 0:02:41]}  c6 {[%clk 0:02:37]} 14. dxc6 {[%clk 0:02:41]}  bxc6 {[%clk 0:02:37]} 15. Bb3 {[%clk 0:02:39]}  a5 {[%clk 0:02:32]} 16. g4 {[%clk 0:02:36]}  Bg6 {[%clk 0:02:32]} 17. h4 {[%clk 0:02:29]}  h5 {[%clk 0:02:27]} 18. gxh5 {[%clk 0:02:24]}  Bxh5 {[%clk 0:02:27]} 19. Ng5 {[%clk 0:02:25]}  axb4 {[%clk 0:02:21]} 20. axb4 {[%clk 0:02:25]}  Rxa1+ {[%clk 0:02:22]} 21. Bxa1 {[%clk 0:02:25]}  Qd7 {[%clk 0:02:09]} 22. Rg1 {[%clk 0:02:18]}  Nd5 {[%clk 0:02:04]} 23. b5 {[%clk 0:02:00]}  Nb4 {[%clk 0:01:56]} 24. Qc4 {[%clk 0:01:49]}  c5 {[%clk 0:01:54]} 25. Qe4 {[%clk 0:01:47]}  g6 {[%clk 0:01:43]} 26. f4 {[%clk 0:01:34]}  d5 {[%clk 0:01:42]} 27. Qg2 {[%clk 0:01:23]}  Nxd3+ {[%clk 0:01:36]} 28. Kf1 {[%clk 0:01:21]}  c4 {[%clk 0:01:30]} 29. Bc2 {[%clk 0:01:20]}  Bxe3 {[%clk 0:01:28]} 30. fxe5 {[%clk 0:01:13]}  Qf5+ {[%clk 0:01:24]} 0-1


[Site "https://www.chess.com"]

[Event "Titled Tuesday Blitz March 22 Late 2022"]
[White "Tan, Jun Ying"]
[Black "Rosenberg, Evan S"]
[WhiteFideId "5710413"]
[BlackFideId "2019299"]
[WhiteElo "1827"]
[BlackElo "2343"]
[Result "1-0"]
[Round "09"]
[TimeControl "180+1"]
[Date "2022.03.22"]
[WhiteClock "0:00:11"]
[BlackClock "0:00:07"]

1. d4 {[%clk 0:03:00]}  Nf6 {[%clk 0:02:59]} 2. c4 {[%clk 0:03:01]}  e6 {[%clk 0:03:00]} 3. Nc3 {[%clk 0:03:01]}  Bb4 {[%clk 0:03:00]} 4. e3 {[%clk 0:03:02]}  O-O {[%clk 0:02:57]} 5. Ne2 {[%clk 0:03:02]}  d5 {[%clk 0:02:53]} 6. a3 {[%clk 0:03:02]}  Be7 {[%clk 0:02:53]} 7. cxd5 {[%clk 0:03:02]}  exd5 {[%clk 0:02:52]} 8. Nf4 {[%clk 0:03:02]}  c6 {[%clk 0:02:48]} 9. Bd3 {[%clk 0:03:02]}  Re8 {[%clk 0:02:45]} 10. O-O {[%clk 0:03:02]}  Bg4 {[%clk 0:02:43]} 11. f3 {[%clk 0:03:02]}  Bc8 {[%clk 0:02:26]} 12. Bc2 {[%clk 0:02:56]}  Nbd7 {[%clk 0:02:21]} 13. e4 {[%clk 0:02:55]}  Nf8 {[%clk 0:02:16]} 14. e5 {[%clk 0:02:48]}  N6d7 {[%clk 0:02:17]} 15. Qe1 {[%clk 0:02:14]}  Ng6 {[%clk 0:02:16]} 16. e6 {[%clk 0:02:04]}  Ndf8 {[%clk 0:02:02]} 17. exf7+ {[%clk 0:01:56]}  Kxf7 {[%clk 0:02:03]} 18. Qf2 {[%clk 0:01:40]}  Bd6 {[%clk 0:01:58]} 19. Nh5 {[%clk 0:01:25]}  Qh4 {[%clk 0:01:48]} 20. Ng3 {[%clk 0:01:14]}  Nf4 {[%clk 0:01:33]} 21. Bd2 {[%clk 0:01:08]}  Nh5 {[%clk 0:01:28]} 22. f4 {[%clk 0:01:02]}  Bg4 {[%clk 0:01:19]} 23. Nxh5 {[%clk 0:00:58]}  Qxf2+ {[%clk 0:01:09]} 24. Kxf2 {[%clk 0:00:56]}  Bxh5 {[%clk 0:01:10]} 25. Rae1 {[%clk 0:00:56]}  Rxe1 {[%clk 0:01:07]} 26. Rxe1 {[%clk 0:00:56]}  Re8 {[%clk 0:01:04]} 27. Rxe8 {[%clk 0:00:52]}  Kxe8 {[%clk 0:01:05]} 28. f5 {[%clk 0:00:50]}  h6 {[%clk 0:00:55]} 29. h3 {[%clk 0:00:48]}  Kd7 {[%clk 0:00:51]} 30. g4 {[%clk 0:00:48]}  Bf7 {[%clk 0:00:49]} 31. Kf3 {[%clk 0:00:47]}  Nh7 {[%clk 0:00:50]} 32. h4 {[%clk 0:00:43]}  Nf6 {[%clk 0:00:50]} 33. Bf4 {[%clk 0:00:39]}  h5 {[%clk 0:00:45]} 34. g5 {[%clk 0:00:37]}  Ng4 {[%clk 0:00:43]} 35. Bxd6 {[%clk 0:00:31]}  Kxd6 {[%clk 0:00:43]} 36. Kf4 {[%clk 0:00:29]}  a6 {[%clk 0:00:37]} 37. b4 {[%clk 0:00:26]}  b6 {[%clk 0:00:34]} 38. Na4 {[%clk 0:00:25]}  Kc7 {[%clk 0:00:27]} 39. Bd1 {[%clk 0:00:24]}  Nf2 {[%clk 0:00:24]} 40. Be2 {[%clk 0:00:24]}  Kb7 {[%clk 0:00:22]} 41. g6 {[%clk 0:00:21]}  Be8 {[%clk 0:00:19]} 42. Bxh5 {[%clk 0:00:17]}  c5 {[%clk 0:00:19]} 43. bxc5 {[%clk 0:00:13]}  Bxa4 {[%clk 0:00:18]} 44. f6 {[%clk 0:00:13]}  Nd3+ {[%clk 0:00:11]} 45. Ke3 {[%clk 0:00:13]}  gxf6 {[%clk 0:00:09]} 46. g7 {[%clk 0:00:12]}  Nf4 {[%clk 0:00:07]} 47. Kxf4 {[%clk 0:00:11]} 1-0


[Site "https://www.chess.com"]

[Event "Titled Tuesday Blitz March 22 Late 2022"]
[White "Terletsky, Oleg"]
[Black "Ardila, Oscar Humberto"]
[WhiteFideId "14116774"]
[BlackFideId "4404742"]
[WhiteElo "2064"]
[BlackElo "1966"]
[Result "1-0"]
[Round "09"]
[TimeControl "180+1"]
[Date "2022.03.22"]
[WhiteClock "0:01:14"]
[BlackClock "0:01:18"]

1. e4 {[%clk 0:03:00]}  e5 {[%clk 0:03:00]} 2. Nf3 {[%clk 0:03:00]}  Nf6 {[%clk 0:03:00]} 3. Nc3 {[%clk 0:03:01]}  Nc6 {[%clk 0:03:00]} 4. d4 {[%clk 0:03:01]}  exd4 {[%clk 0:03:00]} 5. Nxd4 {[%clk 0:03:02]}  Bb4 {[%clk 0:03:00]} 6. Nxc6 {[%clk 0:03:02]}  bxc6 {[%clk 0:03:01]} 7. Bd3 {[%clk 0:03:03]}  d5 {[%clk 0:03:02]} 8. exd5 {[%clk 0:03:04]}  cxd5 {[%clk 0:03:02]} 9. O-O {[%clk 0:03:04]}  O-O {[%clk 0:03:03]} 10. Bg5 {[%clk 0:03:04]}  c6 {[%clk 0:03:03]} 11. Qf3 {[%clk 0:03:05]}  Bd6 {[%clk 0:03:00]} 12. Bxf6 {[%clk 0:03:05]}  Qxf6 {[%clk 0:03:01]} 13. Qxf6 {[%clk 0:03:06]}  gxf6 {[%clk 0:03:02]} 14. Ne2 {[%clk 0:03:06]}  Be5 {[%clk 0:02:52]} 15. Rab1 {[%clk 0:03:04]}  Rb8 {[%clk 0:02:52]} 16. b3 {[%clk 0:03:04]}  a5 {[%clk 0:02:52]} 17. a4 {[%clk 0:03:01]}  Bg4 {[%clk 0:02:46]} 18. Ng3 {[%clk 0:02:41]}  Rfe8 {[%clk 0:02:42]} 19. Nf5 {[%clk 0:02:38]}  Kf8 {[%clk 0:02:24]} 20. h3 {[%clk 0:02:32]}  Bh5 {[%clk 0:02:18]} 21. f4 {[%clk 0:02:17]}  Bc7 {[%clk 0:02:14]} 22. Ng3 {[%clk 0:02:16]}  Bb6+ {[%clk 0:02:10]} 23. Kh2 {[%clk 0:02:12]}  Bg6 {[%clk 0:01:59]} 24. f5 {[%clk 0:02:11]}  Kg7 {[%clk 0:01:55]} 25. Rf3 {[%clk 0:02:05]}  Bc7 {[%clk 0:01:53]} 26. fxg6 {[%clk 0:02:01]}  fxg6 {[%clk 0:01:53]} 27. Rbf1 {[%clk 0:02:02]}  f5 {[%clk 0:01:53]} 28. Kh1 {[%clk 0:02:00]}  Re7 {[%clk 0:01:51]} 29. Bxf5 {[%clk 0:01:42]}  Bxg3 {[%clk 0:01:50]} 30. Rxg3 {[%clk 0:01:41]}  Rf8 {[%clk 0:01:44]} 31. Bd3 {[%clk 0:01:40]}  Rxf1+ {[%clk 0:01:33]} 32. Bxf1 {[%clk 0:01:41]}  Re1 {[%clk 0:01:33]} 33. Kg1 {[%clk 0:01:41]}  Rc1 {[%clk 0:01:33]} 34. Rc3 {[%clk 0:01:41]}  Kf6 {[%clk 0:01:31]} 35. Rxc6+ {[%clk 0:01:41]}  Ke5 {[%clk 0:01:32]} 36. Kf2 {[%clk 0:01:39]}  Kd4 {[%clk 0:01:30]} 37. Bd3 {[%clk 0:01:36]}  Rd1 {[%clk 0:01:30]} 38. Ra6 {[%clk 0:01:33]}  Rd2+ {[%clk 0:01:30]} 39. Kg3 {[%clk 0:01:33]}  g5 {[%clk 0:01:28]} 40. Rxa5 {[%clk 0:01:32]}  Ke5 {[%clk 0:01:27]} 41. Bc4 {[%clk 0:01:26]}  Rxc2 {[%clk 0:01:19]} 42. Rxd5+ {[%clk 0:01:26]}  Kf6 {[%clk 0:01:19]} 43. a5 {[%clk 0:01:24]}  Rc3+ {[%clk 0:01:18]} 44. Kh2 {[%clk 0:01:23]}  h5 {[%clk 0:01:18]} 45. a6 {[%clk 0:01:21]}  Rc1 {[%clk 0:01:18]} 46. Ra5 {[%clk 0:01:14]} 1-0


[Site "https://www.chess.com"]

[Event "Titled Tuesday Blitz March 22 Late 2022"]
[White "Villegas, Pierre"]
[Black "Kokoszczynski, Jan"]
[WhiteFideId "654183"]
[BlackFideId "1174460"]
[WhiteElo "2395"]
[BlackElo "2163"]
[Result "1-0"]
[Round "09"]
[TimeControl "180+1"]
[Date "2022.03.22"]
[WhiteClock "0:00:05"]
[BlackClock "0:00:14"]

1. c4 {[%clk 0:03:00]}  e5 {[%clk 0:02:58]} 2. Nc3 {[%clk 0:02:59]}  Bb4 {[%clk 0:02:57]} 3. e4 {[%clk 0:02:53]}  Bxc3 {[%clk 0:02:53]} 4. dxc3 {[%clk 0:02:51]}  d6 {[%clk 0:02:54]} 5. Be2 {[%clk 0:02:40]}  Nc6 {[%clk 0:02:52]} 6. Be3 {[%clk 0:02:34]}  Be6 {[%clk 0:02:52]} 7. Nf3 {[%clk 0:02:19]}  h6 {[%clk 0:02:49]} 8. O-O {[%clk 0:02:15]}  Nge7 {[%clk 0:02:48]} 9. c5 {[%clk 0:01:54]}  d5 {[%clk 0:02:41]} 10. exd5 {[%clk 0:01:52]}  Nxd5 {[%clk 0:02:41]} 11. Qc1 {[%clk 0:01:33]}  O-O {[%clk 0:02:20]} 12. Rd1 {[%clk 0:01:32]}  Qf6 {[%clk 0:02:17]} 13. b4 {[%clk 0:01:20]}  Rad8 {[%clk 0:02:07]} 14. a3 {[%clk 0:01:09]}  Nce7 {[%clk 0:02:03]} 15. c4 {[%clk 0:01:01]}  Nxe3 {[%clk 0:01:44]} 16. Qxe3 {[%clk 0:01:02]}  Ng6 {[%clk 0:01:44]} 17. g3 {[%clk 0:00:54]}  Bf5 {[%clk 0:01:22]} 18. Rxd8 {[%clk 0:00:47]}  Rxd8 {[%clk 0:01:23]} 19. Rd1 {[%clk 0:00:47]}  Rxd1+ {[%clk 0:01:12]} 20. Bxd1 {[%clk 0:00:48]}  h5 {[%clk 0:01:11]} 21. Ng5 {[%clk 0:00:33]}  Bg4 {[%clk 0:01:08]} 22. Bc2 {[%clk 0:00:22]}  Ne7 {[%clk 0:00:59]} 23. Qd3 {[%clk 0:00:16]}  g6 {[%clk 0:00:56]} 24. Ne4 {[%clk 0:00:12]}  Qe6 {[%clk 0:00:50]} 25. Qd8+ {[%clk 0:00:10]}  Kg7 {[%clk 0:00:50]} 26. Qxc7 {[%clk 0:00:11]}  Bf3 {[%clk 0:00:45]} 27. Ng5 {[%clk 0:00:08]}  Qf6 {[%clk 0:00:15]} 28. Nxf3 {[%clk 0:00:08]}  Nc6 {[%clk 0:00:16]} 29. Kg2 {[%clk 0:00:06]}  g5 {[%clk 0:00:14]} 30. Nd2 {[%clk 0:00:06]}  Nd4 {[%clk 0:00:14]} 31. Be4 {[%clk 0:00:05]}  Qa6 {[%clk 0:00:10]} 32. Qd6 {[%clk 0:00:04]}  f6 {[%clk 0:00:11]} 33. Qxa6 {[%clk 0:00:04]}  bxa6 {[%clk 0:00:11]} 34. c6 {[%clk 0:00:04]}  Kf7 {[%clk 0:00:11]} 35. c7 {[%clk 0:00:04]}  f5 {[%clk 0:00:11]} 36. c8=Q {[%clk 0:00:04]}  fxe4 {[%clk 0:00:12]} 37. Qb7+ {[%clk 0:00:04]}  Kf6 {[%clk 0:00:13]} 38. Qxa6+ {[%clk 0:00:04]}  Kf5 {[%clk 0:00:13]} 39. Qxa7 {[%clk 0:00:04]}  h4 {[%clk 0:00:13]} 40. Qf7+ {[%clk 0:00:05]}  Kg4 {[%clk 0:00:14]} 41. h3# {[%clk 0:00:05]} 1-0


[Site "https://www.chess.com"]